[Event "Titled Tuesday Blitz March 22 Early 2022"]
[White "Dreev, Aleksey"]
[Black "Yeletsky, Ivan"]
[WhiteFideId "4100107"]
[BlackFideId "24180327"]
[WhiteElo "2625"]
[BlackElo "2303"]
[Result "0-1"]
[Round "11"]
[TimeControl "180+1"]
[Date "2022.03.22"]
[WhiteClock "0:00:11"]
[BlackClock "0:00:07"]

1. d4 {[%clk 0:03:00]}  Nf6 {[%clk 0:02:47]} 2. c4 {[%clk 0:02:59]}  e6 {[%clk 0:02:45]} 3. Nc3 {[%clk 0:02:59]}  Bb4 {[%clk 0:02:45]} 4. Qc2 {[%clk 0:03:00]}  O-O {[%clk 0:02:39]} 5. a3 {[%clk 0:03:00]}  Bxc3+ {[%clk 0:02:38]} 6. Qxc3 {[%clk 0:03:01]}  b5 {[%clk 0:02:39]} 7. cxb5 {[%clk 0:03:01]}  c6 {[%clk 0:02:40]} 8. Bg5 {[%clk 0:03:00]}  cxb5 {[%clk 0:02:37]} 9. e3 {[%clk 0:03:01]}  a6 {[%clk 0:02:33]} 10. Nf3 {[%clk 0:03:00]}  Bb7 {[%clk 0:02:27]} 11. Be2 {[%clk 0:02:57]}  h6 {[%clk 0:02:22]} 12. Bh4 {[%clk 0:02:57]}  d6 {[%clk 0:02:22]} 13. O-O {[%clk 0:02:55]}  Nbd7 {[%clk 0:02:22]} 14. Qb4 {[%clk 0:02:55]}  Nb6 {[%clk 0:01:59]} 15. Rfc1 {[%clk 0:02:52]}  g5 {[%clk 0:01:53]} 16. Bg3 {[%clk 0:02:52]}  Ne4 {[%clk 0:01:54]} 17. Qa5 {[%clk 0:02:36]}  Nd5 {[%clk 0:01:39]} 18. Qxd8 {[%clk 0:02:35]}  Rfxd8 {[%clk 0:01:39]} 19. Bd3 {[%clk 0:02:35]}  Ndf6 {[%clk 0:01:29]} 20. Rc7 {[%clk 0:02:21]}  Bd5 {[%clk 0:01:28]} 21. Rac1 {[%clk 0:02:17]}  Rab8 {[%clk 0:01:28]} 22. Ne1 {[%clk 0:02:09]}  Nxg3 {[%clk 0:01:01]} 23. hxg3 {[%clk 0:02:09]}  Bb7 {[%clk 0:00:55]} 24. R7c2 {[%clk 0:01:55]}  Rbc8 {[%clk 0:00:55]} 25. Rxc8 {[%clk 0:01:53]}  Rxc8 {[%clk 0:00:54]} 26. Rxc8+ {[%clk 0:01:53]}  Bxc8 {[%clk 0:00:55]} 27. e4 {[%clk 0:01:48]}  e5 {[%clk 0:00:54]} 28. Nc2 {[%clk 0:01:48]}  Kf8 {[%clk 0:00:48]} 29. f3 {[%clk 0:01:48]}  h5 {[%clk 0:00:46]} 30. Kf2 {[%clk 0:01:48]}  Ke7 {[%clk 0:00:43]} 31. Ke3 {[%clk 0:01:48]}  h4 {[%clk 0:00:42]} 32. gxh4 {[%clk 0:01:37]}  gxh4 {[%clk 0:00:43]} 33. Nb4 {[%clk 0:01:36]}  Bb7 {[%clk 0:00:34]} 34. b3 {[%clk 0:01:28]}  Nh5 {[%clk 0:00:33]} 35. a4 {[%clk 0:01:27]}  bxa4 {[%clk 0:00:29]} 36. bxa4 {[%clk 0:01:27]}  Nf4 {[%clk 0:00:30]} 37. Bf1 {[%clk 0:01:26]}  a5 {[%clk 0:00:29]} 38. Na2 {[%clk 0:01:26]}  Ne6 {[%clk 0:00:25]} 39. d5 {[%clk 0:01:21]}  Nc5 {[%clk 0:00:24]} 40. Nc3 {[%clk 0:01:20]}  Bc8 {[%clk 0:00:22]} 41. Bb5 {[%clk 0:01:16]}  f5 {[%clk 0:00:16]} 42. Be2 {[%clk 0:00:56]}  f4+ {[%clk 0:00:16]} 43. Kf2 {[%clk 0:00:49]}  Bd7 {[%clk 0:00:16]} 44. Bd1 {[%clk 0:00:47]}  Kf6 {[%clk 0:00:15]} 45. Bc2 {[%clk 0:00:46]}  h3 {[%clk 0:00:13]} 46. gxh3 {[%clk 0:00:46]}  Bxh3 {[%clk 0:00:14]} 47. Nb5 {[%clk 0:00:44]}  Ke7 {[%clk 0:00:14]} 48. Na3 {[%clk 0:00:40]}  Bd7 {[%clk 0:00:09]} 49. Nc4 {[%clk 0:00:40]}  Nb7 {[%clk 0:00:07]} 50. Nb6 {[%clk 0:00:37]}  Kd8 {[%clk 0:00:07]} 51. Ke2 {[%clk 0:00:32]}  Kc7 {[%clk 0:00:08]} 52. Nc4 {[%clk 0:00:27]}  Nc5 {[%clk 0:00:08]} 53. Nxa5 {[%clk 0:00:24]}  Bxa4 {[%clk 0:00:08]} 54. Bxa4 {[%clk 0:00:22]}  Nxa4 {[%clk 0:00:09]} 55. Nc4 {[%clk 0:00:22]}  Nc5 {[%clk 0:00:09]} 56. Kf2 {[%clk 0:00:22]}  Nb3 {[%clk 0:00:10]} 57. Kg2 {[%clk 0:00:20]}  Nd4 {[%clk 0:00:10]} 58. Kf2 {[%clk 0:00:20]}  Nb3 {[%clk 0:00:09]} 59. Kg2 {[%clk 0:00:15]}  Nd4 {[%clk 0:00:09]} 60. Nd2 {[%clk 0:00:13]}  Kb6 {[%clk 0:00:09]} 61. Kh3 {[%clk 0:00:13]}  Kc5 {[%clk 0:00:07]} 62. Kg4 {[%clk 0:00:13]}  Kb4 {[%clk 0:00:07]} 63. Kg5 {[%clk 0:00:14]}  Kc3 {[%clk 0:00:07]} 64. Nf1 {[%clk 0:00:14]}  Nxf3+ {[%clk 0:00:07]} 65. Kf6 {[%clk 0:00:15]}  Nd2 {[%clk 0:00:05]} 66. Nh2 {[%clk 0:00:11]}  Nxe4+ {[%clk 0:00:05]} 67. Ke6 {[%clk 0:00:11]}  Kd3 {[%clk 0:00:04]} 68. Nf3 {[%clk 0:00:11]}  Ke3 {[%clk 0:00:04]} 69. Nh4 {[%clk 0:00:12]}  f3 {[%clk 0:00:04]} 70. Nf5+ {[%clk 0:00:12]}  Kd3 {[%clk 0:00:04]} 71. Nxd6 {[%clk 0:00:10]}  f2 {[%clk 0:00:05]} 72. Nxe4 {[%clk 0:00:10]}  Kxe4 {[%clk 0:00:05]} 73. d6 {[%clk 0:00:10]}  f1=Q {[%clk 0:00:06]} 74. d7 {[%clk 0:00:11]}  Qf5+ {[%clk 0:00:07]} 0-1


[Site "https://www.chess.com"]

[Event "Titled Tuesday Blitz March 22 Early 2022"]
[White "Fiorito, Fabian"]
[Black "Kozak, Antoni"]
[WhiteFideId "100200"]
[BlackFideId "21832030"]
[WhiteElo "2395"]
[BlackElo "2236"]
[Result "0-1"]
[Round "11"]
[TimeControl "180+1"]
[Date "2022.03.22"]
[WhiteClock "0:00:02"]
[BlackClock "0:00:13"]

1. e4 {[%clk 0:03:00]}  e5 {[%clk 0:02:54]} 2. Nf3 {[%clk 0:03:00]}  Nc6 {[%clk 0:02:53]} 3. Bc4 {[%clk 0:02:55]}  Be7 {[%clk 0:02:49]} 4. d3 {[%clk 0:02:50]}  Nf6 {[%clk 0:02:48]} 5. O-O {[%clk 0:02:50]}  O-O {[%clk 0:02:40]} 6. c3 {[%clk 0:02:49]}  d6 {[%clk 0:02:40]} 7. h3 {[%clk 0:02:48]}  Be6 {[%clk 0:02:40]} 8. Bxe6 {[%clk 0:02:42]}  fxe6 {[%clk 0:02:40]} 9. Nbd2 {[%clk 0:02:39]}  Rb8 {[%clk 0:02:26]} 10. a4 {[%clk 0:02:37]}  Qe8 {[%clk 0:02:26]} 11. Nc4 {[%clk 0:02:36]}  Qg6 {[%clk 0:02:24]} 12. Kh1 {[%clk 0:02:03]}  Nh5 {[%clk 0:02:23]} 13. Nh2 {[%clk 0:01:55]}  Bh4 {[%clk 0:02:13]} 14. Ng4 {[%clk 0:01:46]}  Rf7 {[%clk 0:01:57]} 15. Be3 {[%clk 0:01:45]}  Rbf8 {[%clk 0:01:56]} 16. Qe2 {[%clk 0:01:34]}  Bxf2 {[%clk 0:01:27]} 17. Bxf2 {[%clk 0:01:21]}  Rxf2 {[%clk 0:01:26]} 18. Qxf2 {[%clk 0:01:15]}  Rxf2 {[%clk 0:01:26]} 19. Rxf2 {[%clk 0:01:16]}  Nf4 {[%clk 0:01:22]} 20. Rd1 {[%clk 0:01:12]}  h5 {[%clk 0:01:16]} 21. Nge3 {[%clk 0:01:09]}  d5 {[%clk 0:01:13]} 22. exd5 {[%clk 0:00:40]}  exd5 {[%clk 0:01:06]} 23. Nxe5 {[%clk 0:00:38]}  Nxe5 {[%clk 0:01:02]} 24. Rxf4 {[%clk 0:00:37]}  Nxd3 {[%clk 0:01:03]} 25. Rf5 {[%clk 0:00:28]}  Qxf5 {[%clk 0:00:48]} 26. Nxf5 {[%clk 0:00:26]}  Nf2+ {[%clk 0:00:48]} 27. Kh2 {[%clk 0:00:24]}  Nxd1 {[%clk 0:00:49]} 28. Ne7+ {[%clk 0:00:24]}  Kf7 {[%clk 0:00:49]} 29. Nxd5 {[%clk 0:00:21]}  Nxb2 {[%clk 0:00:49]} 30. Nxc7 {[%clk 0:00:20]}  Nxa4 {[%clk 0:00:49]} 31. Nb5 {[%clk 0:00:20]}  a6 {[%clk 0:00:45]} 32. Nd6+ {[%clk 0:00:20]}  Ke7 {[%clk 0:00:43]} 33. Nxb7 {[%clk 0:00:20]}  Nxc3 {[%clk 0:00:43]} 34. Kg3 {[%clk 0:00:20]}  g5 {[%clk 0:00:37]} 35. Kf3 {[%clk 0:00:20]}  Kf6 {[%clk 0:00:30]} 36. Ke3 {[%clk 0:00:19]}  Ke5 {[%clk 0:00:28]} 37. Nc5 {[%clk 0:00:16]}  a5 {[%clk 0:00:26]} 38. Kd3 {[%clk 0:00:15]}  Nd5 {[%clk 0:00:24]} 39. Ke2 {[%clk 0:00:11]}  Nf4+ {[%clk 0:00:22]} 40. Kf3 {[%clk 0:00:11]}  Kd5 {[%clk 0:00:22]} 41. Na4 {[%clk 0:00:08]}  Nd3 {[%clk 0:00:19]} 42. Nc3+ {[%clk 0:00:06]}  Kc4 {[%clk 0:00:18]} 43. Na4 {[%clk 0:00:07]}  Nc5 {[%clk 0:00:17]} 44. Nb6+ {[%clk 0:00:05]}  Kb3 {[%clk 0:00:17]} 45. h4 {[%clk 0:00:04]}  gxh4 {[%clk 0:00:16]} 46. Kf4 {[%clk 0:00:04]}  Kb4 {[%clk 0:00:13]} 47. Kg5 {[%clk 0:00:04]}  Kb5 {[%clk 0:00:14]} 48. Nd5 {[%clk 0:00:05]}  Ne4+ {[%clk 0:00:12]} 49. Kxh4 {[%clk 0:00:04]}  a4 {[%clk 0:00:13]} 50. Nc7+ {[%clk 0:00:02]}  Kc4 {[%clk 0:00:12]} 51. Ne6 {[%clk 0:00:01]}  a3 {[%clk 0:00:12]} 52. Kxh5 {[%clk 0:00:02]}  a2 {[%clk 0:00:13]} 0-1


[Site "https://www.chess.com"]

[Event "Titled Tuesday Blitz March 22 Early 2022"]
[White "Jaskolka, Tomasz"]
[Black "Araujo Filho, Luiz Antonio Coel"]
[WhiteFideId "1170791"]
[BlackFideId "2130661"]
[WhiteElo "2073"]
[BlackElo "2254"]
[Result "1-0"]
[Round "11"]
[TimeControl "180+1"]
[Date "2022.03.22"]
[WhiteClock "0:02:09"]
[BlackClock "0:01:25"]

1. e4 {[%clk 0:03:00]}  c6 {[%clk 0:02:59]} 2. d4 {[%clk 0:02:58]}  d5 {[%clk 0:02:59]} 3. e5 {[%clk 0:02:58]}  Bf5 {[%clk 0:02:58]} 4. h4 {[%clk 0:02:58]}  h5 {[%clk 0:02:58]} 5. c4 {[%clk 0:02:57]}  e6 {[%clk 0:02:58]} 6. Nc3 {[%clk 0:02:57]}  Nd7 {[%clk 0:02:58]} 7. cxd5 {[%clk 0:02:57]}  cxd5 {[%clk 0:02:57]} 8. Nf3 {[%clk 0:02:57]}  Ne7 {[%clk 0:02:55]} 9. Bg5 {[%clk 0:02:55]}  Qb6 {[%clk 0:02:53]} 10. Qd2 {[%clk 0:02:32]}  Nc6 {[%clk 0:02:50]} 11. Be2 {[%clk 0:02:22]}  Bb4 {[%clk 0:02:43]} 12. O-O {[%clk 0:02:22]}  O-O {[%clk 0:02:42]} 13. Qf4 {[%clk 0:02:19]}  Rac8 {[%clk 0:02:35]} 14. Nxd5 {[%clk 0:02:14]}  Bg4 {[%clk 0:01:25]} 15. Nxb6 {[%clk 0:02:09]} 1-0


[Site "https://www.chess.com"]

[Event "Titled Tuesday Blitz March 22 Early 2022"]
[White "Jeet, Jain"]
[Black "Kowalczyk, Pawel"]
[WhiteFideId "5073022"]
[BlackFideId "1130641"]
[WhiteElo "2085"]
[BlackElo "2344"]
[Result "1-0"]
[Round "11"]
[TimeControl "180+1"]
[Date "2022.03.22"]
[WhiteClock "0:00:21"]
[BlackClock "0:01:21"]

1. d4 {[%clk 0:03:00]}  Nf6 {[%clk 0:02:59]} 2. Nf3 {[%clk 0:03:00]}  g6 {[%clk 0:02:59]} 3. Bf4 {[%clk 0:03:00]}  c5 {[%clk 0:02:59]} 4. e3 {[%clk 0:03:00]}  Bg7 {[%clk 0:02:58]} 5. h3 {[%clk 0:02:59]}  O-O {[%clk 0:02:58]} 6. c3 {[%clk 0:02:58]}  Qb6 {[%clk 0:02:58]} 7. Qb3 {[%clk 0:02:57]}  d5 {[%clk 0:02:56]} 8. Nbd2 {[%clk 0:02:55]}  Nc6 {[%clk 0:02:54]} 9. Be2 {[%clk 0:02:40]}  c4 {[%clk 0:02:54]} 10. Qxb6 {[%clk 0:02:39]}  axb6 {[%clk 0:02:55]} 11. O-O {[%clk 0:02:37]}  b5 {[%clk 0:02:56]} 12. a3 {[%clk 0:02:33]}  Bf5 {[%clk 0:02:56]} 13. Rfe1 {[%clk 0:02:28]}  h6 {[%clk 0:02:54]} 14. Ne5 {[%clk 0:02:25]}  g5 {[%clk 0:02:51]} 15. Bh2 {[%clk 0:02:22]}  Nd7 {[%clk 0:02:50]} 16. Nxd7 {[%clk 0:02:19]}  Bxd7 {[%clk 0:02:49]} 17. Bf3 {[%clk 0:02:19]}  e6 {[%clk 0:02:48]} 18. e4 {[%clk 0:02:19]}  dxe4 {[%clk 0:02:48]} 19. Nxe4 {[%clk 0:02:19]}  Rad8 {[%clk 0:02:41]} 20. Nc5 {[%clk 0:02:12]}  Bc8 {[%clk 0:02:41]} 21. Bc7 {[%clk 0:02:11]}  Rde8 {[%clk 0:02:33]} 22. Bxc6 {[%clk 0:01:59]}  bxc6 {[%clk 0:02:32]} 23. Bd6 {[%clk 0:01:59]}  Rd8 {[%clk 0:02:21]} 24. Bxf8 {[%clk 0:01:50]}  Kxf8 {[%clk 0:02:18]} 25. a4 {[%clk 0:01:49]}  b4 {[%clk 0:02:19]} 26. a5 {[%clk 0:01:48]}  e5 {[%clk 0:02:15]} 27. a6 {[%clk 0:01:45]}  Bf5 {[%clk 0:02:13]} 28. a7 {[%clk 0:01:38]}  Ra8 {[%clk 0:02:13]} 29. dxe5 {[%clk 0:01:37]}  bxc3 {[%clk 0:02:12]} 30. bxc3 {[%clk 0:01:36]}  Ke8 {[%clk 0:02:09]} 31. Red1 {[%clk 0:01:33]}  Bxe5 {[%clk 0:02:06]} 32. Nb7 {[%clk 0:01:33]}  Bc7 {[%clk 0:01:54]} 33. Nd6+ {[%clk 0:01:31]}  Bxd6 {[%clk 0:01:50]} 34. Rxd6 {[%clk 0:01:32]}  Bd7 {[%clk 0:01:51]} 35. Rxh6 {[%clk 0:01:30]}  Ke7 {[%clk 0:01:50]} 36. Rh8 {[%clk 0:01:23]}  Rxh8 {[%clk 0:01:49]} 37. a8=Q {[%clk 0:01:23]}  Rxa8 {[%clk 0:01:50]} 38. Rxa8 {[%clk 0:01:24]}  Kd6 {[%clk 0:01:48]} 39. Kf1 {[%clk 0:01:12]}  f6 {[%clk 0:01:48]} 40. Ke2 {[%clk 0:01:12]}  Ke5 {[%clk 0:01:44]} 41. Ke3 {[%clk 0:01:09]}  Be6 {[%clk 0:01:43]} 42. Ra5+ {[%clk 0:01:08]}  Bd5 {[%clk 0:01:40]} 43. g3 {[%clk 0:01:06]}  Kf5 {[%clk 0:01:41]} 44. f4 {[%clk 0:01:04]}  gxf4+ {[%clk 0:01:37]} 45. gxf4 {[%clk 0:01:01]}  Ke6 {[%clk 0:01:37]} 46. Ra8 {[%clk 0:00:57]}  Kf5 {[%clk 0:01:35]} 47. Ra7 {[%clk 0:00:53]}  Kg6 {[%clk 0:01:35]} 48. Kf2 {[%clk 0:00:50]}  Be4 {[%clk 0:01:34]} 49. Kg3 {[%clk 0:00:50]}  Bd5 {[%clk 0:01:34]} 50. Re7 {[%clk 0:00:46]}  Bf7 {[%clk 0:01:32]} 51. Kg4 {[%clk 0:00:43]}  Bd5 {[%clk 0:01:29]} 52. f5+ {[%clk 0:00:43]}  Kh6 {[%clk 0:01:30]} 53. Rd7 {[%clk 0:00:43]}  Be4 {[%clk 0:01:28]} 54. Rd6 {[%clk 0:00:40]}  Kg7 {[%clk 0:01:28]} 55. h4 {[%clk 0:00:41]}  Bd3 {[%clk 0:01:28]} 56. h5 {[%clk 0:00:40]}  Be2+ {[%clk 0:01:28]} 57. Kh4 {[%clk 0:00:37]}  Bd3 {[%clk 0:01:28]} 58. Rxc6 {[%clk 0:00:29]}  Be2 {[%clk 0:01:27]} 59. h6+ {[%clk 0:00:25]}  Kxh6 {[%clk 0:01:22]} 60. Rxf6+ {[%clk 0:00:25]}  Kg7 {[%clk 0:01:22]} 61. Kg5 {[%clk 0:00:26]}  Bd3 {[%clk 0:01:22]} 62. Rc6 {[%clk 0:00:25]}  Kf7 {[%clk 0:01:23]} 63. Rc7+ {[%clk 0:00:25]}  Ke8 {[%clk 0:01:23]} 64. Kf6 {[%clk 0:00:24]}  Be2 {[%clk 0:01:22]} 65. Ke6 {[%clk 0:00:22]}  Bf1 {[%clk 0:01:21]} 66. Rc8# {[%clk 0:00:21]} 1-0


[Site "https://www.chess.com"]

[Event "Titled Tuesday Blitz March 22 Early 2022"]
[White "Kanyamarala, Tarun"]
[Black "Fathy, Elameir"]
[WhiteFideId "45004714"]
[BlackFideId "10600396"]
[WhiteElo "2075"]
[BlackElo "2311"]
[Result "1-0"]
[Round "11"]
[TimeControl "180+1"]
[Date "2022.03.22"]
[WhiteClock "0:01:07"]
[BlackClock "0:00:01"]

1. Nf3 {[%clk 0:03:00]}  d5 {[%clk 0:02:59]} 2. e3 {[%clk 0:03:01]}  Nf6 {[%clk 0:02:58]} 3. c4 {[%clk 0:03:01]}  c6 {[%clk 0:02:58]} 4. Nc3 {[%clk 0:03:01]}  e6 {[%clk 0:02:58]} 5. b3 {[%clk 0:03:01]}  Bd6 {[%clk 0:02:57]} 6. Bb2 {[%clk 0:03:02]}  O-O {[%clk 0:02:58]} 7. Qc2 {[%clk 0:03:03]}  e5 {[%clk 0:02:58]} 8. cxd5 {[%clk 0:03:02]}  cxd5 {[%clk 0:02:59]} 9. Nb5 {[%clk 0:03:02]}  Nc6 {[%clk 0:02:59]} 10. Nxd6 {[%clk 0:03:00]}  Qxd6 {[%clk 0:03:00]} 11. d4 {[%clk 0:03:00]}  Ne4 {[%clk 0:02:46]} 12. Nxe5 {[%clk 0:02:52]}  Qb4+ {[%clk 0:02:41]} 13. Kd1 {[%clk 0:02:50]}  Nxe5 {[%clk 0:02:39]} 14. dxe5 {[%clk 0:02:49]}  Bf5 {[%clk 0:02:39]} 15. a3 {[%clk 0:02:43]}  Qb6 {[%clk 0:02:13]} 16. Bd4 {[%clk 0:02:41]}  Qg6 {[%clk 0:01:41]} 17. f3 {[%clk 0:02:34]}  Ng3 {[%clk 0:01:35]} 18. e4 {[%clk 0:02:24]}  Bxe4 {[%clk 0:00:52]} 19. fxe4 {[%clk 0:02:21]}  Nxh1 {[%clk 0:00:51]} 20. g3 {[%clk 0:02:06]}  Rac8 {[%clk 0:00:32]} 21. Qg2 {[%clk 0:02:03]}  dxe4 {[%clk 0:00:33]} 22. Ke1 {[%clk 0:02:03]}  Rfd8 {[%clk 0:00:28]} 23. Rd1 {[%clk 0:02:01]}  e3 {[%clk 0:00:06]} 24. Bd3 {[%clk 0:01:35]}  Qh5 {[%clk 0:00:02]} 25. Be2 {[%clk 0:01:29]}  Qg6 {[%clk 0:00:02]} 26. Qxh1 {[%clk 0:01:27]}  Rc2 {[%clk 0:00:02]} 27. Qxb7 {[%clk 0:01:17]}  h5 {[%clk 0:00:03]} 28. Bd3 {[%clk 0:01:08]}  Rxd4 {[%clk 0:00:01]} 29. Bxg6 {[%clk 0:01:07]} 1-0


[Site "https://www.chess.com"]

[Event "Titled Tuesday Blitz March 22 Early 2022"]
[White "Kanyamarala, Trisha"]
[Black "Golsta, Madara"]
[WhiteFideId "45004722"]
[BlackFideId "11607386"]
[WhiteElo "2047"]
[BlackElo "1997"]
[Result "1-0"]
[Round "11"]
[TimeControl "180+1"]
[Date "2022.03.22"]
[WhiteClock "0:00:48"]
[BlackClock "0:00:08"]

1. Nf3 {[%clk 0:03:00]}  Nf6 {[%clk 0:02:58]} 2. c4 {[%clk 0:02:59]}  c5 {[%clk 0:02:56]} 3. Nc3 {[%clk 0:02:59]}  g6 {[%clk 0:02:56]} 4. g3 {[%clk 0:02:59]}  Bg7 {[%clk 0:02:56]} 5. Bg2 {[%clk 0:02:58]}  O-O {[%clk 0:02:51]} 6. O-O {[%clk 0:02:58]}  d6 {[%clk 0:02:51]} 7. d4 {[%clk 0:02:56]}  cxd4 {[%clk 0:02:51]} 8. Nxd4 {[%clk 0:02:57]}  Nc6 {[%clk 0:02:51]} 9. Nxc6 {[%clk 0:02:55]}  bxc6 {[%clk 0:02:51]} 10. Bxc6 {[%clk 0:02:54]}  Rb8 {[%clk 0:02:46]} 11. Bg2 {[%clk 0:02:49]}  Be6 {[%clk 0:02:30]} 12. Nd5 {[%clk 0:02:43]}  Qd7 {[%clk 0:02:18]} 13. e4 {[%clk 0:02:33]}  Rfc8 {[%clk 0:02:13]} 14. Qe2 {[%clk 0:02:23]}  Bg4 {[%clk 0:01:50]} 15. f3 {[%clk 0:02:18]}  Be6 {[%clk 0:01:49]} 16. Be3 {[%clk 0:02:11]}  Nxe4 {[%clk 0:00:54]} 17. fxe4 {[%clk 0:02:04]}  Rxb2 {[%clk 0:00:54]} 18. Qf3 {[%clk 0:01:51]}  Rxc4 {[%clk 0:00:48]} 19. Rab1 {[%clk 0:01:47]}  Rcc2 {[%clk 0:00:30]} 20. Rxb2 {[%clk 0:01:43]}  Rxb2 {[%clk 0:00:31]} 21. Rc1 {[%clk 0:01:35]}  Qb7 {[%clk 0:00:23]} 22. h3 {[%clk 0:01:11]}  Be5 {[%clk 0:00:22]} 23. Rc7 {[%clk 0:01:05]}  Rb1+ {[%clk 0:00:18]} 24. Kh2 {[%clk 0:01:05]}  Qb5 {[%clk 0:00:15]} 25. Nxe7+ {[%clk 0:01:01]}  Kg7 {[%clk 0:00:14]} 26. Nf5+ {[%clk 0:00:54]}  Bxf5 {[%clk 0:00:13]} 27. exf5 {[%clk 0:00:54]}  Qd3 {[%clk 0:00:08]} 28. Bh6+ {[%clk 0:00:48]} 1-0


[Site "https://www.chess.com"]

[Event "Titled Tuesday Blitz March 22 Early 2022"]
[White "Koellner, Ruben Gideon"]
[Black "Atakhan, Abtin"]
[WhiteFideId "12993093"]
[BlackFideId "22502203"]
[WhiteElo "2525"]
[BlackElo "2119"]
[Result "0-1"]
[Round "11"]
[TimeControl "180+1"]
[Date "2022.03.22"]
[WhiteClock "0:00:32"]
[BlackClock "0:00:35"]

1. d4 {[%clk 0:03:00]}  Nf6 {[%clk 0:02:59]} 2. Bg5 {[%clk 0:02:59]}  Ne4 {[%clk 0:02:58]} 3. Bf4 {[%clk 0:02:59]}  d5 {[%clk 0:02:58]} 4. e3 {[%clk 0:02:59]}  c5 {[%clk 0:02:58]} 5. Bd3 {[%clk 0:02:58]}  cxd4 {[%clk 0:02:58]} 6. Bxe4 {[%clk 0:02:57]}  dxe4 {[%clk 0:02:58]} 7. exd4 {[%clk 0:02:58]}  Nc6 {[%clk 0:02:56]} 8. Ne2 {[%clk 0:02:55]}  Bg4 {[%clk 0:02:39]} 9. Nbc3 {[%clk 0:02:45]}  Qb6 {[%clk 0:02:32]} 10. O-O {[%clk 0:02:31]}  Rd8 {[%clk 0:02:32]} 11. d5 {[%clk 0:02:28]}  e6 {[%clk 0:02:20]} 12. h3 {[%clk 0:02:21]}  Bxe2 {[%clk 0:02:15]} 13. Qxe2 {[%clk 0:02:22]}  exd5 {[%clk 0:02:13]} 14. Nxd5 {[%clk 0:02:21]}  Rxd5 {[%clk 0:02:07]} 15. Qxe4+ {[%clk 0:02:20]}  Ne7 {[%clk 0:02:07]} 16. Rfe1 {[%clk 0:02:12]}  Qc6 {[%clk 0:01:57]} 17. Qe3 {[%clk 0:02:02]}  f6 {[%clk 0:01:48]} 18. c4 {[%clk 0:01:53]}  Rd7 {[%clk 0:01:43]} 19. Qxa7 {[%clk 0:01:46]}  Kf7 {[%clk 0:01:41]} 20. Qb8 {[%clk 0:01:21]}  g5 {[%clk 0:01:24]} 21. Bg3 {[%clk 0:01:17]}  Bg7 {[%clk 0:01:21]} 22. Qa7 {[%clk 0:01:13]}  Nf5 {[%clk 0:01:04]} 23. Qa5 {[%clk 0:00:57]}  Nxg3 {[%clk 0:01:01]} 24. fxg3 {[%clk 0:00:58]}  Rhd8 {[%clk 0:00:54]} 25. Re2 {[%clk 0:00:40]}  Rd1+ {[%clk 0:00:53]} 26. Rxd1 {[%clk 0:00:39]}  Rxd1+ {[%clk 0:00:54]} 27. Kh2 {[%clk 0:00:40]}  Qxc4 {[%clk 0:00:49]} 28. Re3 {[%clk 0:00:32]}  Qc1 {[%clk 0:00:35]} 0-1


[Site "https://www.chess.com"]

[Event "Titled Tuesday Blitz March 22 Early 2022"]
[White "Koridze, Lile"]
[Black "Marcziter, Dmitrii"]
[WhiteFideId "13612514"]
[BlackFideId "13900765"]
[WhiteElo "1999"]
[BlackElo "2155"]
[Result "1-0"]
[Round "11"]
[TimeControl "180+1"]
[Date "2022.03.22"]
[WhiteClock "0:00:56"]
[BlackClock "0:01:05"]

1. d4 {[%clk 0:03:00]}  Nf6 {[%clk 0:02:56]} 2. c4 {[%clk 0:03:01]}  g6 {[%clk 0:02:56]} 3. Nc3 {[%clk 0:03:00]}  Bg7 {[%clk 0:02:57]} 4. e4 {[%clk 0:03:00]}  d6 {[%clk 0:02:58]} 5. Nf3 {[%clk 0:02:58]}  O-O {[%clk 0:02:59]} 6. Be2 {[%clk 0:02:58]}  Na6 {[%clk 0:03:00]} 7. O-O {[%clk 0:02:59]}  c5 {[%clk 0:03:01]} 8. Be3 {[%clk 0:02:58]}  Ng4 {[%clk 0:02:59]} 9. Bc1 {[%clk 0:02:54]}  cxd4 {[%clk 0:02:57]} 10. Nxd4 {[%clk 0:02:53]}  Ne5 {[%clk 0:02:57]} 11. Rb1 {[%clk 0:02:51]}  Nc5 {[%clk 0:02:55]} 12. b4 {[%clk 0:02:49]}  Ne6 {[%clk 0:02:55]} 13. Be3 {[%clk 0:02:46]}  Bd7 {[%clk 0:02:51]} 14. Nd5 {[%clk 0:02:26]}  Rc8 {[%clk 0:02:48]} 15. Rc1 {[%clk 0:02:25]}  Nxd4 {[%clk 0:02:40]} 16. Bxd4 {[%clk 0:02:25]}  b6 {[%clk 0:02:38]} 17. f4 {[%clk 0:02:23]}  Nc6 {[%clk 0:02:37]} 18. Bxg7 {[%clk 0:02:23]}  Kxg7 {[%clk 0:02:37]} 19. b5 {[%clk 0:02:23]}  Na5 {[%clk 0:02:33]} 20. Qd4+ {[%clk 0:02:23]}  f6 {[%clk 0:02:33]} 21. e5 {[%clk 0:02:23]}  Kg8 {[%clk 0:02:12]} 22. exf6 {[%clk 0:02:05]}  exf6 {[%clk 0:02:11]} 23. Bf3 {[%clk 0:02:03]}  Be6 {[%clk 0:02:08]} 24. Rfd1 {[%clk 0:02:01]}  Bf5 {[%clk 0:01:52]} 25. Ne3 {[%clk 0:01:55]}  Be6 {[%clk 0:01:48]} 26. Qxd6 {[%clk 0:01:51]}  Qe8 {[%clk 0:01:37]} 27. Bd5 {[%clk 0:01:09]}  Bxd5 {[%clk 0:01:34]} 28. Nxd5 {[%clk 0:01:09]}  Rxc4 {[%clk 0:01:20]} 29. Rxc4 {[%clk 0:01:01]}  Nxc4 {[%clk 0:01:19]} 30. Nxf6+ {[%clk 0:01:01]}  Rxf6 {[%clk 0:01:16]} 31. Qxf6 {[%clk 0:01:02]}  Qe3+ {[%clk 0:01:11]} 32. Kh1 {[%clk 0:00:58]}  Nd2 {[%clk 0:01:05]} 33. Qd8+ {[%clk 0:00:56]} 1-0


[Site "https://www.chess.com"]